bitfinex/quotes_ETHUSD_20251028
["timestamp","ask_amount","ask_price","bid_price","bid_amount"]
[1761644110656,0.4733,4108.3,4108.2,0.4611]
[1761644110953,0.001,4108.4,4108.2,0.4611]
[1761644111133,0.4621,4108.4,4108.2,0.4611]
[1761644111329,0.001,4108.4,4108.2,0.4611]
[1761644112061,2.43504135,4108.4,4108.2,0.4611]
[1761644112363,0.001,4108.4,4108.2,0.4611]
[1761644113063,0.001,4108.4,4108.3,0.1216]
[1761644113541,0.001,4108.4,4108.3,0.5807]
[1761644113738,0.001,4108.4,4108.3,0.90633134]
[1761644114956,0.001,4108.4,4108.3,0.5807]
[1761644116967,0.0002,4108.4,4108.3,0.5807]
[1761644118751,0.0002,4108.4,4108.3,3.01479682]
[1761644119075,0.0002,4108.4,4108.3,0.5807]
[1761644119636,0.0002,4108.4,4108.3,3.01479682]
[1761644119839,0.0002,4108.4,4108.3,3.58384209]
[1761644120271,0.0002,4108.4,4108.3,1.14974527]
[1761644122273,0.0002,4108.4,4108.3,3.01479682]
[1761644128073,0.0002,4108.4,4108.3,6.80019682]
[1761644128279,0.0002,4108.4,4108.3,7.20570082]
[1761644128864,0.0002,4108.4,4108.3,8.76090082]
[1761644131989,0.0002,4108.4,4108.3,4.85390082]
[1761644132213,0.0002,4108.4,4108.3,6.26499588]
[1761644132386,0.0002,4108.4,4108.3,6.24065492]
[1761644134404,0.0002,4108.4,4108.3,1.3867541]
[1761644134571,0.0002,4108.4,4108.3,0.1216]
[1761644135305,0.0002,4108.4,4108.3,2.55569682]
[1761644135680,0.0002,4108.4,4108.3,3.02619682]
[1761644135897,0.0002,4108.4,4108.3,3.05053778]
[1761644136101,0.0002,4108.4,4108.3,3.43170082]
[1761644136280,0.0002,4108.4,4108.3,4.55463471]
[1761644137617,0.0002,4108.4,4108.3,6.10983471]
[1761644137828,0.0002,4108.4,4108.3,10.37342358]
[1761644139318,0.0002,4108.4,4108.3,10.37542358]
[1761644141213,0.0002,4108.4,4108.3,6.11183471]
[1761644141417,0.0004,4108.6,4108.5,2.83948233]
[1761644141584,0.0004,4108.6,4108.5,3.80273363]
[1761644141785,0.0004,4108.6,4108.5,5.82843363]
[1761644142221,0.0004,4108.6,4108.5,5.35793363]
[1761644142898,0.0004,4108.6,4108.5,5.82843363]
[1761644146243,0.0004,4108.6,4108.5,4.95242963]
[1761644150639,0.0004,4108.6,4108.5,2.5184513]
[1761644150934,0.4639,4108.6,4108.4,3.7854]
[1761644151317,0.0004,4108.6,4108.4,3.7854]
[1761644151519,0.0004,4108.6,4108.4,2.43399537]
[1761644153640,0.0004,4108.6,4108.5,2.43397833]
[1761644154009,0.4639,4108.6,4108.5,2.43397833]
[1761644154221,0.0004,4108.6,4108.5,2.43397833]
[1761644154756,0.4639,4108.6,4108.5,2.43397833]
[1761644155342,0.0004,4108.6,4108.5,2.43397833]
[1761644155512,0.4639,4108.6,4108.5,2.43397833]
[1761644155841,0.4639,4108.6,4108.4,2.43403078]
[1761644157107,0.4639,4108.6,4108.5,2.43397833]
[1761644157312,0.4639,4108.6,4108.5,6.21937833]
[1761644158917,0.4639,4108.6,4108.5,3.7854]
[1761644159420,0.0004,4108.6,4108.5,6.21937833]
[1761644160815,0.0004,4108.6,4108.5,8.30822473]
[1761644161015,0.0004,4108.6,4108.5,10.26892873]
[1761644163246,0.001,4109.1,4109.0,6.20888216]
[1761644163750,0.001,4109.1,4109.0,6.33048216]
[1761644165955,0.0002,4109.1,4109.0,6.33048216]
[1761644166162,0.0002,4109.1,4109.0,7.67604932]
[1761644168631,0.001,4109.3,4109.2,2.43356371]
[1761644168870,0.001,4109.3,4109.2,6.20856371]
[1761644169072,0.001,4109.3,4109.2,6.64966371]
[1761644171543,0.001,4109.3,4109.2,6.20856371]
[1761644171749,0.001,4109.3,4109.2,3.9783943]
[1761644172468,0.4475,4109.3,4109.2,3.9783943]
[1761644172669,0.001,4109.3,4109.2,3.9783943]
[1761644175483,0.001,4109.3,4109.2,4.4194943]
[1761644175986,0.001,4109.3,4109.2,3.9783943]
[1761644176352,0.001,4109.3,4109.2,4.4194943]
[1761644176783,0.001,4109.3,4109.2,8.1944943]
[1761644177172,0.001,4109.3,4109.2,8.5999983]
[1761644179500,0.001,4109.3,4109.2,8.1588983]
[1761644179669,0.001,4109.3,4109.2,4.180504]
[1761644179870,0.001,4109.3,4109.2,6.61406771]
[1761644183716,0.001,4109.3,4109.2,3.775]
[1761644183919,0.4418,4109.3,4109.2,3.775]
[1761644184283,0.001,4109.3,4109.2,3.775]
[1761644184483,0.4418,4109.3,4109.2,3.775]
[1761644188509,0.001,4109.3,4109.2,3.775]
[1761644188717,0.4418,4109.3,4109.2,3.775]
[1761644189617,0.4418,4109.3,4109.1,3.775]
[1761644190327,0.4418,4109.3,4109.2,3.775]
[1761644190627,0.441,4109.3,4109.2,3.775]
[1761644191828,0.0002,4109.3,4109.2,3.775]
[1761644194312,0.441,4109.3,4109.2,3.775]
[1761644197942,0.0002,4109.3,4109.2,3.775]
[1761644198149,0.4283,4109.3,4109.2,3.775]
[1761644201752,0.0002,4109.3,4109.2,3.775]
[1761644209154,0.0002,4109.3,4109.2,4.2066]
[1761644209357,0.0002,4109.3,4109.2,7.09771934]
[1761644209658,0.0002,4109.3,4109.2,7.07338371]
[1761644213889,0.0002,4109.3,4109.2,7.47888771]
[1761644214955,0.0004,4109.5,4109.4,2.43344527]
[1761644215361,0.0004,4109.5,4109.4,2.98664527]
[1761644215584,0.0004,4109.5,4109.4,4.01394414]
[1761644216789,0.0004,4109.5,4109.4,3.58234414]
[1761644216958,0.0004,4109.5,4109.4,1.14889887]
[1761644218789,0.0004,4109.5,4109.4,4.92389887]
[1761644219160,2.43378605,4109.5,4109.4,0.1216]
[1761644219361,0.4235,4109.5,4109.1,0.002]
[1761644219570,2.4335478,4109.3,4109.1,0.002]
[1761644219786,2.85666371,4109.2,4109.1,0.002]
[1761644220660,2.95404405,4109.2,4109.1,0.002]
[1761644224807,2.95404405,4109.2,4109.1,3.777]
[1761644224993,2.85666371,4109.2,4109.1,3.777]
[1761644225395,0.4231,4109.2,4109.1,3.777]
[1761644225996,2.4335504,4109.3,4109.1,3.777]
[1761644226165,0.0004,4109.5,4109.1,4.1549]
[1761644226372,2.43378893,4109.5,4109.2,4.2189]
[1761644226594,0.001,4109.3,4109.2,3.775]
[1761644227714,0.001,4109.3,4109.2,4.2078]
[1761644227898,0.001,4109.3,4109.2,6.64136371]
[1761644228102,0.001,4109.3,4109.2,7.60954364]
[1761644228605,0.001,4109.3,4109.2,5.17597993]
[1761644228902,0.001,4109.3,4109.2,4.2078]
[1761644229303,0.001,4109.3,4109.2,4.3294]
[1761644230279,0.001,4109.3,4109.2,6.76296371]
[1761644230700,0.001,4109.3,4109.2,4.3294]
[1761644230901,0.001,4109.3,4109.2,3.8966]
[1761644231086,0.001,4109.3,4109.2,4.34693]
[1761644232497,0.417,4109.3,4109.2,4.34693]
[1761644232675,0.001,4109.3,4109.2,4.34693]
[1761644234381,2.43450448,4109.3,4109.2,4.34693]
[1761644234580,0.001,4109.3,4109.2,4.34693]
[1761644235017,2.43450448,4109.3,4109.2,4.34693]
[1761644235709,2.85050448,4109.3,4109.2,4.34693]
[1761644236181,2.43450448,4109.3,4109.2,4.34693]
[1761644238202,2.85050448,4109.3,4109.2,4.34693]
[1761644238521,2.85050448,4109.3,4109.2,3.8966]
[1761644239304,2.84970448,4109.3,4109.2,3.8966]
[1761644246098,2.43370448,4109.3,4109.2,3.8966]
[1761644246301,0.0002,4109.3,4109.2,3.8966]
[1761644246615,0.0002,4109.3,4109.2,4.76274]
[1761644246814,0.0002,4109.3,4109.2,4.78707563]
[1761644247013,0.0002,4109.3,4109.2,4.76274]
[1761644252245,0.0002,4109.3,4109.2,4.32994]
[1761644256024,0.0002,4109.3,4109.2,4.77924]
[1761644256446,0.0002,4109.3,4109.2,4.32994]
[1761644258058,0.0002,4109.3,4109.2,4.77924]
[1761644258959,0.0002,4109.3,4109.2,7.21280371]
[1761644259326,0.0002,4109.3,4109.2,4.77924]
[1761644262148,0.0002,4109.3,4109.2,7.23713934]
[1761644262445,0.0002,4109.3,4109.2,7.21280371]
[1761644263806,0.0004,4109.5,4109.2,7.21280371]
[1761644264098,0.0008,4109.7,4109.3,2.06801812]
[1761644264386,0.0008,4109.7,4109.6,0.1216]
[1761644267985,0.0008,4109.7,4109.6,0.5709]
[1761644268923,0.0008,4109.7,4109.1,0.2287]
[1761644269150,10.95901665,4109.2,4109.1,0.002]
[1761644269412,2.43380062,4108.8,4108.7,0.002]
[1761644269613,2.43433384,4107.9,4107.7,0.002]
[1761644269911,2.64973384,4107.9,4107.7,0.002]
[1761644270091,2.85353384,4107.9,4107.7,0.002]
[1761644270295,2.74714643,4107.9,4107.7,0.002]
[1761644270704,2.95094643,4107.9,4107.7,0.002]
[1761644271336,2.74714643,4107.9,4107.7,0.002]
[1761644271488,2.95094643,4107.9,4107.7,0.002]
[1761644278612,2.85353384,4107.9,4107.7,0.002]
[1761644279009,2.85353384,4107.9,4107.7,0.1236]
[1761644283448,2.43433384,4107.9,4107.7,0.1236]
[1761644283864,2.63823384,4107.9,4107.7,0.1236]
[1761644284068,0.09841141,4108.1,4107.7,0.1236]
[1761644284348,0.001,4108.1,4107.7,0.002]
[1761644284565,0.001,4108.1,4107.8,0.45]
[1761644284765,0.001,4108.1,4108.0,0.1216]
[1761644285274,0.001,4108.1,4108.0,0.5696]
[1761644286142,0.001,4108.1,4108.0,0.1216]
[1761644288383,0.0002,4108.1,4108.0,0.1216]
[1761644288548,0.0002,4108.1,4108.0,0.573]
[1761644289384,0.0002,4108.1,4108.0,4.348]
[1761644290376,0.0002,4108.1,4108.0,5.02663326]
[1761644291003,0.0002,4108.1,4108.0,4.57523326]
[1761644291202,0.0002,4108.1,4108.0,5.02663326]
[1761644291706,0.0002,4108.1,4108.0,7.46090784]
[1761644292266,0.0002,4108.1,4108.0,5.02663326]
[1761644293203,0.0002,4108.1,4108.0,7.46090784]
[1761644296770,0.0002,4108.1,4108.0,7.86641184]
[1761644300397,0.0002,4108.1,4108.0,4.98073726]
[1761644300987,0.0002,4108.1,4108.0,7.41501184]
[1761644303123,0.0002,4108.1,4108.0,7.86641184]
[1761644305334,0.0002,4108.1,4108.0,7.41501184]
[1761644306830,0.1743,4108.6,4108.2,3.7748]
[1761644307323,0.1743,4108.6,4108.5,0.1216]
[1761644307949,0.001,4108.6,4108.5,3.35072233]
[1761644308233,0.001,4108.6,4108.5,14.74146501]
[1761644308401,0.001,4108.6,4108.5,10.45439876]
[1761644309736,0.001,4108.6,4108.5,14.71712523]
[1761644310233,0.001,4108.6,4108.5,10.45439876]
[1761644312955,0.0002,4108.6,4108.5,10.45439876]
[1761644317944,0.0002,4108.6,4108.5,10.57599876]
[1761644321859,0.0002,4108.6,4108.5,11.42773324]
[1761644324373,2.66416883,4113.0,4109.8,6.19300842]
[1761644324881,2.43257009,4110.9,4109.8,6.19300842]
[1761644325348,2.44363956,4110.8,4109.8,6.19300842]
[1761644325677,2.43268713,4110.7,4109.8,6.19300842]
[1761644327163,2.61984253,4110.6,4109.8,6.19300842]
[1761644327372,0.001,4110.1,4109.8,6.59851242]
[1761644328644,0.3884,4109.9,4109.8,3.7598]
[1761644328978,2.82154922,4109.9,4109.8,3.7598]
[1761644329679,0.3884,4109.9,4109.8,3.7598]
[1761644330048,2.82154922,4109.9,4109.8,3.7598]
[1761644337293,2.82074922,4109.9,4109.8,3.7598]
[1761644340195,0.3876,4109.9,4109.8,3.7598]
[1761644340698,2.82074922,4109.9,4109.8,3.7598]
[1761644343102,0.3876,4109.9,4109.8,3.7598]
[1761644343674,2.82074922,4109.9,4109.8,3.7598]
[1761644347003,2.82074922,4109.9,4109.8,3.7618]
[1761644347770,0.3876,4109.9,4109.8,3.7618]
[1761644348300,0.2322,4109.9,4109.8,3.7618]
[1761644348501,0.0002,4109.9,4109.8,3.8834]
[1761644349804,2.59064922,4109.9,4109.8,3.8834]
[1761644349974,0.3877,4109.9,4109.8,3.8834]
[1761644350179,2.82084922,4109.9,4109.8,3.8834]
[1761644350399,2.82084922,4109.9,4109.8,3.7618]
[1761644361913,2.82004922,4109.9,4109.8,3.7618]
[1761644362113,0.3869,4109.9,4109.8,3.7618]
[1761644362342,0.001,4110.0,4109.8,3.7618]
[1761644362551,0.001,4110.0,4109.9,3.7598]
[1761644364309,0.001,4110.0,4109.9,4.1911]
[1761644365841,0.001,4110.0,4109.9,4.60561532]
[1761644367960,0.001,4110.0,4109.9,7.03876454]
[1761644368460,0.001,4110.0,4109.9,4.60561532]
[1761644369768,0.001,4110.0,4109.9,4.17431532]
[1761644369970,0.001,4110.0,4109.9,3.7598]
[1761644371529,0.1574,4110.0,4109.9,3.7598]
[1761644374662,0.001,4110.0,4109.9,3.7598]
[1761644378570,2.43409002,4110.0,4109.9,3.7598]
[1761644379124,2.59049002,4110.0,4109.9,3.7598]
[1761644379355,0.1574,4110.0,4109.9,3.7598]
[1761644380047,2.43409002,4110.0,4109.9,3.7598]
[1761644380585,0.001,4110.0,4109.9,3.7598]
[1761644380763,2.43409002,4110.0,4109.9,3.7598]
[1761644381284,2.59049002,4110.0,4109.9,3.7598]
[1761644382187,0.1574,4110.0,4109.9,3.7598]
[1761644383484,2.59049002,4110.0,4109.9,3.7598]
[1761644385978,0.001,4110.0,4109.9,3.7598]
[1761644386179,0.001,4110.0,4109.9,4.14814]
[1761644386362,0.0002,4110.0,4109.9,4.14814]
[1761644386874,0.1566,4110.0,4109.9,4.14814]
[1761644388392,0.0002,4110.0,4109.9,4.14814]
[1761644391390,0.1566,4110.0,4109.9,4.14814]
[1761644392794,0.0002,4110.0,4109.9,4.14814]
[1761644393598,6.85253877,4110.0,4109.9,3.7598]
[1761644393786,6.94990844,4110.0,4109.9,3.7598]
[1761644398931,2.68705969,4110.0,4109.9,3.7598]
[1761644399143,2.53065969,4110.0,4109.9,3.7598]
[1761644399291,2.68765969,4110.0,4109.9,3.7598]
[1761644400684,2.59029002,4110.0,4109.9,3.7598]
[1761644401117,0.1572,4110.0,4109.9,3.7598]
[1761644401320,2.59029002,4110.0,4109.9,3.7598]
[1761644403016,0.1572,4110.0,4109.9,3.7598]
[1761644403406,2.59029002,4110.0,4109.9,3.7598]
[1761644403920,0.1572,4110.0,4109.9,3.7598]
[1761644404227,0.1572,4110.0,4109.9,3.8814]
[1761644404422,2.59029002,4110.0,4109.9,3.8814]
[1761644405199,2.59029002,4110.0,4109.9,3.7598]
[1761644405200,0.0002,4110.0,4109.9,3.7598]
[1761644405408,0.0002,4110.0,4109.9,4.13598]
[1761644406007,0.0002,4110.0,4109.9,3.7598]
[1761644406303,2.43329002,4110.0,4109.9,3.7598]
[1761644407830,2.59029002,4110.0,4109.9,3.7598]
[1761644410941,2.58949002,4110.0,4109.9,3.7598]
[1761644412549,4.14469002,4110.0,4109.9,3.7598]
[1761644413047,4.87496261,4110.0,4109.9,3.7598]
[1761644415246,2.43314922,4109.9,4109.8,0.002]
[1761644415443,2.81874922,4109.9,4109.8,0.002]
[1761644415944,3.5490307,4109.9,4109.8,0.002]
[1761644418757,2.43338605,4109.5,4109.4,0.002]
[1761644419258,4.15408605,4109.5,4109.4,0.002]
[1761644419556,4.25148062,4109.5,4109.4,0.002]
[1761644435396,4.25068062,4109.5,4109.4,0.002]
[1761644436886,8.51352937,4109.5,4109.4,0.002]
[1761644440199,8.34802937,4109.5,4109.4,0.002]
[1761644442203,8.34802937,4109.5,4109.4,0.4557]
[1761644442396,8.34802937,4109.5,4109.4,0.002]
[1761644442916,8.3722348,4109.5,4109.4,0.4557]
[1761644444520,6.8170348,4109.5,4109.4,0.4557]
[1761644444815,6.8170348,4109.5,4109.4,0.002]
[1761644445017,6.8170348,4109.5,4109.4,0.4557]
[1761644445715,2.55418605,4109.5,4109.4,0.4557]
[1761644445915,4.10938605,4109.5,4109.4,0.4557]
[1761644446124,4.10938605,4109.5,4109.4,0.002]
[1761644447320,4.10938605,4109.5,4109.4,0.4557]
[1761644447813,3.98778605,4109.5,4109.4,0.4557]
[1761644448228,1.217,4109.8,4109.4,0.002]
[1761644448414,1.217,4109.8,4109.4,0.4557]
[1761644448925,1.217,4109.8,4109.6,0.6]
[1761644449425,1.217,4109.8,4109.7,0.4537]
[1761644449731,1.217,4109.8,4109.7,0.80261369]
[1761644451694,1.217,4109.8,4109.7,0.4537]
[1761644452596,1.217,4109.8,4109.6,0.6]
[1761644452934,2.43326763,4109.7,4109.6,0.6]
[1761644454631,2.43326763,4109.7,4109.6,1.0537]
[1761644454832,2.43326763,4109.7,4109.6,0.6]
[1761644455029,2.43326763,4109.7,4109.6,1.0537]
[1761644459146,2.43326763,4109.7,4109.6,4.8135]
[1761644459440,3.65021699,4109.8,4109.6,4.8135]
[1761644459740,3.6494288,4109.8,4109.7,0.4537]
[1761644460248,1.2162,4109.8,4109.7,0.4537]
[1761644460942,3.64940842,4109.8,4109.7,0.4537]
[1761644464244,1.2162,4109.8,4109.7,0.4537]
[1761644464751,3.64940842,4109.8,4109.6,0.6]
[1761644465338,3.64940842,4109.8,4109.6,1.0499]
[1761644466459,3.64940842,4109.8,4109.6,0.6]
[1761644466645,1.2162,4109.8,4109.6,0.6]
[1761644466846,2.43326763,4109.7,4109.6,0.6]
[1761644467156,4.15476763,4109.7,4109.6,0.6]
[1761644468128,3.98846763,4109.7,4109.6,0.6]
[1761644469149,4.15476763,4109.7,4109.6,0.6]
[1761644469730,3.98846763,4109.7,4109.6,0.6]
[1761644472326,4.15476763,4109.7,4109.6,0.6]
[1761644472726,3.98846763,4109.7,4109.6,0.6]
[1761644474334,1.5552,4109.7,4109.6,0.6]
[1761644474535,3.98846763,4109.7,4109.6,1.0326]
[1761644475668,1.5552,4109.7,4109.6,1.0326]
[1761644476966,1.2162,4109.8,4109.6,4.7924]
[1761644477166,1.2162,4109.8,4109.7,4.1924]
[1761644477538,0.0002,4109.8,4109.7,4.1924]
[1761644481582,0.0002,4109.8,4109.7,3.7598]
[1761644481883,0.0002,4109.8,4109.7,4.1924]
[1761644483374,0.0002,4109.8,4109.7,4.6842]
[1761644484183,2.43350845,4110.0,4109.7,4.6842]
[1761644484387,2.43350845,4110.0,4109.9,0.1216]
[1761644484889,2.43350845,4110.0,4109.9,0.5542]
[1761644486354,0.0004,4110.0,4109.9,0.5542]
[1761644487281,2.43349002,4110.0,4109.9,0.5542]
[1761644487867,0.0004,4110.0,4109.9,0.5542]
[1761644488186,2.43349002,4110.0,4109.9,0.1216]
[1761644488558,0.0004,4110.0,4109.9,4.314]
[1761644488774,0.0004,4110.0,4109.9,3.8814]
[1761644488982,0.0004,4110.0,4109.9,4.76234]
[1761644491193,0.0004,4110.0,4109.9,7.19548922]
[1761644491398,0.0004,4110.0,4109.9,4.76234]
[1761644492162,0.0004,4110.0,4109.9,7.19548922]
[1761644492361,0.0004,4110.0,4109.9,7.60099322]
[1761644502940,0.0004,4110.0,4109.9,9.15619322]
[1761644503102,0.001,4110.3,4110.2,6.59587563]
[1761644503301,0.001,4110.3,4110.2,9.33673986]
[1761644503503,0.001,4110.3,4110.2,9.45833986]
[1761644504443,0.001,4110.3,4110.2,6.61986423]
[1761644504637,0.0488,4110.4,4110.2,6.61986423]
[1761644504841,0.0488,4110.4,4110.3,0.4388]
[1761644505039,0.0488,4110.4,4110.3,1.15957983]
[1761644506240,0.0488,4110.4,4110.3,5.44408383]
[1761644506743,0.0488,4110.4,4110.3,7.87699626]
[1761644508911,0.0488,4110.4,4110.3,5.03857983]
[1761644509325,0.0488,4110.4,4110.3,7.47149226]
[1761644509639,0.048,4110.4,4110.3,7.47149226]
[1761644510511,0.048,4110.4,4110.3,5.03857983]
[1761644510714,0.048,4110.4,4110.3,5.63857983]
[1761644511024,0.048,4110.4,4110.3,5.19977983]
[1761644512739,0.048,4110.4,4110.3,5.63857983]
[1761644512945,0.048,4110.4,4110.3,5.19977983]
[1761644514043,0.048,4110.4,4110.3,7.63269226]
[1761644514251,0.048,4110.4,4110.3,8.07149226]
[1761644514540,0.048,4110.4,4110.3,5.19977983]
[1761644515243,0.048,4110.4,4110.3,7.63269226]
[1761644515742,0.048,4110.4,4110.3,5.19977983]
[1761644516046,0.048,4110.4,4110.3,7.63269226]
[1761644516243,0.048,4110.4,4110.3,5.19977983]
[1761644517329,0.048,4110.4,4110.3,7.63269226]
[1761644517849,0.048,4110.4,4110.3,5.19977983]
[1761644518055,0.048,4110.4,4110.3,4.479]
[1761644518930,0.048,4110.4,4110.3,4.9178]
[1761644519234,0.048,4110.4,4110.3,4.479]
[1761644520451,0.048,4110.4,4110.3,4.481]
[1761644520958,2.64395325,4110.4,4110.3,4.481]
[1761644521118,0.2111,4110.4,4110.3,4.481]
[1761644521318,0.048,4110.4,4110.3,4.481]
[1761644522650,0.048,4110.4,4110.3,4.9198]
[1761644522954,0.048,4110.4,4110.3,4.481]
[1761644524754,0.048,4110.4,4110.3,7.34941243]
[1761644525955,0.048,4110.4,4110.3,4.9165]
[1761644526555,0.048,4110.4,4110.3,7.34941243]
[1761644527257,0.048,4110.4,4110.3,12.75111212]
[1761644527751,0.048,4110.4,4110.3,8.48985767]
[1761644528359,0.048,4110.4,4110.3,6.05694524]
[1761644528662,0.048,4110.4,4110.3,4.481]
[1761644532960,0.048,4110.4,4110.3,6.91391243]
[1761644533166,0.0472,4110.4,4110.3,7.35801243]
[1761644533329,0.0472,4110.4,4110.3,4.9251]
[1761644534244,0.0472,4110.4,4110.3,4.481]
[1761644534969,0.0472,4110.4,4110.3,6.91391243]
[1761644536732,0.0472,4110.4,4110.3,7.35801243]
[1761644538254,0.0472,4110.4,4110.3,8.25207579]
[1761644538790,0.0472,4110.4,4110.3,5.81916336]
[1761644539086,0.0472,4110.4,4110.3,5.37506336]
[1761644539293,0.0472,4110.4,4110.3,4.481]
[1761644540855,0.0472,4110.4,4110.3,6.91391243]
[1761644541056,0.0472,4110.4,4110.3,7.35801243]
[1761644542911,0.0472,4110.4,4110.3,4.9251]
[1761644543293,0.0472,4110.4,4110.3,4.481]
[1761644544858,0.0472,4110.4,4110.3,7.35801243]
[1761644545058,0.0472,4110.4,4110.3,8.33712194]
[1761644547874,0.4405,4110.4,4110.3,7.89302194]
[1761644548192,0.0472,4110.4,4110.3,5.86561351]
[1761644548385,0.0472,4110.4,4110.3,8.29852594]
[1761644548692,0.0472,4110.4,4110.3,8.74262594]
[1761644549062,0.0472,4110.4,4110.3,13.00388039]
[1761644550898,0.0472,4110.4,4110.3,12.88228039]
[1761644553081,0.001,4110.6,4110.5,2.83829806]
[1761644553407,0.001,4110.6,4110.5,5.02030753]
[1761644553576,0.001,4110.6,4110.5,6.99527959]
[1761644554606,0.001,4110.6,4110.5,17.01447959]
[1761644556933,0.01,4110.8,4110.6,4.39343888]
[1761644557063,1e-08,4110.8,4110.7,21.02179879]
[1761644557268,1e-08,4110.8,4110.7,21.43637204]
[1761644557708,0.00020001,4110.9,4110.8,4.39332052]
[1761644557881,0.00020001,4110.9,4110.8,9.09347497]
[1761644558202,0.00020001,4110.9,4110.8,11.45002027]
[1761644559673,0.4131,4112.6,4111.6,2.8376472]
[1761644559888,0.4131,4112.6,4111.7,11.03214249]
[1761644560087,0.4131,4112.6,4111.7,11.47104249]
[1761644560372,0.2148,4112.6,4111.7,11.47104249]
[1761644560804,0.2148,4112.6,4111.7,11.59264249]
[1761644560989,0.2148,4112.6,4111.7,12.99512106]
[1761644563139,0.4131,4112.6,4111.7,12.99512106]
[1761644564487,0.01,4112.8,4111.7,12.99512106]
[1761644564687,0.01,4112.8,4112.7,2.43149269]
[1761644564926,0.01,4112.8,4112.7,10.52154713]
[1761644565086,0.01,4112.8,4112.7,10.96044713]
[1761644565292,0.01,4112.8,4112.7,12.32218221]
[1761644567921,0.01,4112.8,4112.7,8.46643176]
[1761644568352,0.01,4112.8,4112.7,9.19589109]
[1761644568834,0.01,4112.8,4112.7,10.75109109]
[1761644569224,0.01,4112.8,4112.7,7.0430911]
[1761644572840,0.01,4112.8,4112.7,7.6430911]
[1761644573213,1e-08,4112.8,4112.7,7.6430911]
[1761644573417,1e-08,4112.8,4112.7,7.98030687]
[1761644573601,0.72939548,4115.0,4113.7,0.2253]
[1761644573806,0.01,4115.8,4115.1,0.405504]
[1761644574207,0.318,4115.8,4114.8,0.4389]
[1761644574430,0.318,4115.8,4115.3,0.405504]
[1761644574634,0.318,4115.8,4115.7,2.42972033]
[1761644574818,0.01,4115.8,4115.7,2.83522433]
[1761644575343,0.01,4115.8,4115.7,4.41471067]
[1761644575544,0.01,4115.8,4115.7,3.33372433]
[1761644575758,0.4545,4115.8,4115.7,3.33372433]
[1761644576176,0.01,4115.8,4115.7,3.33372433]
[1761644578738,0.4506,4115.8,4115.7,2.83522433]
[1761644578962,0.01,4115.8,4115.7,2.83522433]
[1761644579832,0.4585,4115.8,4115.7,2.83522433]
[1761644580062,0.01,4115.8,4115.7,2.83522433]
[1761644580766,0.01,4115.8,4115.7,4.37996411]
[1761644580955,0.01,4115.8,4115.7,9.4615676]
[1761644581147,0.01,4115.8,4115.7,9.0226676]
[1761644581343,0.01,4115.8,4115.7,9.4615676]
[1761644581746,0.05,4116.4,4116.3,2.83487017]
[1761644582065,0.0492,4116.4,4116.3,8.46720231]
[1761644582443,0.0492,4116.4,4116.3,3.36130162]
[1761644583750,0.0492,4116.4,4116.3,3.69520162]
[1761644583950,0.0492,4116.4,4116.3,4.13410162]
[1761644584267,0.0492,4116.4,4116.3,4.13170162]
[1761644587451,0.0502,4116.4,4116.3,5.25040162]
[1761644587679,0.0502,4116.4,4116.3,5.69320162]
[1761644587848,0.0502,4116.4,4116.3,4.13800162]
[1761644588049,0.0502,4116.4,4116.3,5.69320162]
[1761644588050,1e-08,4116.4,4116.3,5.69320162]
[1761644589892,1e-08,4116.4,4116.3,5.25040162]
[1761644590190,1e-08,4116.4,4116.3,5.69320162]
[1761644591899,1e-08,4116.4,4116.3,5.25040162]
[1761644592296,1e-08,4116.4,4116.3,5.69320162]
[1761644598299,1e-08,4116.4,4116.3,5.57240162]
[1761644598512,1e-08,4116.4,4116.3,5.69320162]
[1761644600614,0.001,4117.3,4117.2,2.42883513]
[1761644600918,0.01,4118.8,4118.7,9.49455525]
[1761644601073,0.01,4118.8,4118.7,4.38865456]
[1761644601407,0.1978,4118.8,4118.7,3.51512298]
[1761644601806,0.01,4118.8,4118.7,3.88382298]
[1761644602706,0.01,4118.8,4118.7,5.90610248]
[1761644602914,0.01,4118.8,4118.7,5.88182298]
[1761644603206,1e-08,4118.8,4118.7,5.88182298]
[1761644605419,0.01,4120.8,4119.6,0.405504]
[1761644605632,0.1906,4123.0,4120.8,0.405504]
[1761644605633,0.2317,4122.2,4120.8,0.405504]
[1761644605829,0.3816,4121.7,4119.9,2.42724337]
[1761644606036,0.3816,4121.7,4119.7,0.2342]
[1761644606037,0.3816,4121.7,4120.8,0.2317]
[1761644606338,0.19,4121.6,4121.0,2.42658194]
[1761644606494,0.2301,4120.9,4120.8,0.2317]
[1761644606838,0.2301,4120.9,4120.8,2.65841325]
[1761644607067,0.4205,4120.9,4120.8,2.65841325]
[1761644607250,0.4174,4121.4,4120.9,0.405504]
[1761644607393,0.4174,4121.4,4121.1,0.405504]
[1761644607593,0.4174,4121.4,4121.2,2.42647772]
[1761644607832,0.4174,4121.4,4120.8,0.2317]
[1761644607833,0.192,4121.7,4120.9,0.405504]
[1761644607999,0.01,4121.8,4121.7,2.83168737]
[1761644608713,0.1954,4121.8,4121.7,0.405504]
[1761644608893,0.1954,4121.8,4121.0,0.405504]
[1761644609095,0.1954,4121.8,4120.9,1.5552]
[1761644609341,0.01,4121.8,4121.5,0.405504]
[1761644609536,0.01,4121.8,4121.5,2.83180194]
[1761644609839,0.1954,4121.8,4121.5,2.83180194]
[1761644610334,0.1954,4121.8,4121.6,2.42624154]
[1761644610701,0.1954,4121.8,4121.7,0.1208]
[1761644611631,0.01,4121.8,4121.7,0.1208]
[1761644611794,0.01,4121.8,4121.7,2.54698337]